bitfinex-derivatives/quotes_ETHF0:USTF0_20251006
["timestamp","ask_amount","ask_price","bid_price","bid_amount"]
[1759769247884,0.70868836,4682.1,4682.0,1.28375]
[1759769248482,0.70868836,4682.1,4682.0,1.49775]
[1759769248483,0.50348836,4682.1,4682.0,1.49775]
[1759769248686,0.68574,4683.4,4682.9,0.38418]
[1759769248986,0.7241,4683.0,4682.9,0.7763]
[1759769249980,0.3016,4682.9,4682.6,0.7181]
[1759769250279,0.5483,4683.0,4682.4,0.38422]
[1759769250280,0.50997,4683.0,4682.4,0.38422]
[1759769250486,0.4225,4682.5,4682.4,1.16052]
[1759769250676,0.7241,4682.5,4682.4,1.16052]
[1759769250875,0.7241,4682.5,4682.4,0.93822]
[1759769251083,0.4225,4682.4,4682.3,1.16053]
[1759769251481,0.7241,4682.4,4682.3,0.7763]
[1759769251688,0.7241,4682.4,4682.3,0.3339]
[1759769251882,0.3016,4682.3,4682.2,0.38423]
[1759769252087,0.7241,4682.3,4682.2,0.38423]
[1759769252482,0.7241,4682.3,4682.2,0.93823]
[1759769252677,0.7241,4682.3,4682.2,1.16053]
[1759769252987,0.4225,4682.3,4682.2,1.16053]
[1759769253387,0.7241,4682.3,4682.2,1.16053]
[1759769255785,0.3089,4682.7,4682.6,0.3842]
[1759769256085,0.7272,4682.7,4682.6,0.9142]
[1759769256288,0.7272,4682.7,4682.6,0.75]
[1759769258387,0.7272,4682.7,4682.6,1.1342]
[1759769259491,0.4183,4682.7,4682.6,0.75]
[1759769259689,0.4183,4682.7,4682.5,0.1209]
[1759769259690,0.3089,4682.2,4681.9,0.308]
[1759769259990,0.2134,4681.8,4681.7,0.442]
[1759769260193,0.7272,4681.8,4681.7,0.82628]
[1759769260389,0.7272,4681.8,4681.7,1.13428]
[1759769260591,1.23086539,4681.8,4681.7,1.13428]
[1759769261795,1.23086539,4681.8,4681.5,0.38429]
[1759769261990,0.7272,4681.6,4681.5,0.69229]
[1759769262190,1.23086539,4681.6,4681.5,0.91429]
[1759769262591,1.23086539,4681.6,4681.5,0.53]
[1759769263397,1.23086539,4681.6,4681.5,0.75]
[1759769263598,1.23086539,4681.6,4681.5,0.8709]
[1759769264297,1.23086539,4681.6,4681.5,0.75]
[1759769264792,1.23086539,4681.6,4681.5,0.8709]
[1759769264997,0.50366539,4681.6,4681.5,0.8709]
[1759769265299,0.71721198,4681.9,4681.8,0.75]
[1759769265899,0.92211198,4681.9,4681.8,0.75]
[1759769266199,1.23101198,4681.9,4681.8,0.75]
[1759769267095,1.23101198,4681.9,4681.8,0.53]
[1759769267297,1.23101198,4681.9,4681.8,0.75]
[1759769267903,1.23101198,4681.9,4681.8,1.13427]
[1759769275404,0.50381198,4681.9,4681.8,1.13427]
[1759769275596,0.50381198,4681.9,4681.8,6.34827]
[1759769275801,0.5289,4682.6,4682.5,1.25791]
[1759769276003,1.25186584,4682.6,4682.5,0.7458]
[1759769276202,1.25186584,4682.6,4682.5,0.5274]
[1759769276606,1.25186584,4682.6,4682.0,0.1279]
[1759769276607,0.1261,4682.5,4682.3,0.38423]
[1759769276809,1.25186584,4682.4,4682.3,1.13003]
[1759769277206,1.25186584,4682.4,4682.3,0.91163]
[1759769277406,1.25186584,4682.4,4682.3,1.13003]
[1759769277804,0.72426584,4682.4,4682.3,1.13003]
[1759769280304,1.25186584,4682.4,4682.3,1.13003]
[1759769281111,0.94376584,4682.4,4682.0,0.68885]
[1759769281306,0.7484,4682.1,4682.0,0.91165]
[1759769281500,1.25186584,4682.1,4682.0,0.91165]
[1759769282012,1.25186584,4682.1,4682.0,1.13005]
[1759769282509,1.25186584,4682.1,4682.0,0.5274]
[1759769282715,0.7484,4681.6,4681.5,0.3046]
[1759769283009,0.7484,4681.2,4681.1,0.3046]
[1759769283213,1.25186584,4681.2,4681.0,0.0022313]
[1759769283413,1.25186584,4681.1,4681.0,0.0022313]
[1759769286610,9.04253926,4681.1,4680.4,0.3046]
[1759769286812,0.7484,4680.2,4680.1,0.5274]
[1759769287015,0.72426584,4680.2,4680.1,0.7458]
[1759769287806,0.72658268,4680.2,4680.1,0.74802178]
[1759769288415,1.25418268,4680.2,4680.1,0.74802178]
[1759769288613,1.25418268,4680.2,4680.1,0.30682178]
[1759769288921,1.25418268,4680.2,4680.1,0.00222178]
[1759769290217,0.2208,4679.2,4679.1,1.13029]
[1759769290412,0.4403,4679.2,4679.1,1.13029]
[1759769290616,0.02,4679.2,4679.1,0.82569]
[1759769290922,0.214,4680.0,4679.0,40.9279]
[1759769290923,0.38444,4679.8,4679.2,0.60728]
[1759769291122,0.50913256,4679.7,4679.5,0.1279]
[1759769291321,0.50913256,4679.6,4679.5,0.4325]
[1759769291725,0.50913256,4679.6,4679.5,1.25816]
[1759769291917,0.00231684,4680.2,4680.0,0.5691]
[1759769292117,0.00231684,4680.2,4680.0,0.8737]
[1759769292118,0.50887516,4680.1,4680.0,0.8737]
[1759769293314,0.00231684,4680.2,4680.1,0.38441]
[1759769293520,0.51095042,4680.2,4680.1,1.13021]
[1759769295227,0.00231684,4680.2,4680.1,1.13021]
[1759769297829,8.555e-05,4680.2,4680.1,6.13021]
[1759769299719,0.38428,4681.7,4681.6,0.7262]
[1759769300020,3.62646701,4681.7,4681.6,0.7262]
[1759769300618,3.24218701,4681.7,4681.6,0.7262]
[1759769300822,3.24389233,4681.7,4681.6,0.7262]
[1759769301721,8.24389233,4681.7,4681.0,0.1228]
[1759769301928,0.235,4680.7,4680.6,0.3147]
[1759769302123,0.235,4680.7,4680.6,0.7262]
[1759769302329,0.74349405,4680.7,4680.6,0.7262]
[1759769302624,0.62599405,4680.7,4680.6,0.7262]
[1759769304335,0.74349405,4680.7,4680.6,0.7262]
[1759769305134,0.62599405,4680.7,4680.6,0.7262]
[1759769307025,0.74349405,4680.7,4680.6,0.7262]
[1759769307530,3.64396983,4680.7,4680.6,0.3147]
[1759769308125,0.1175,4680.2,4679.5,0.1228]
[1759769308330,0.74349405,4680.1,4679.6,0.38445]
[1759769308527,0.74349405,4680.1,4679.7,0.38444]
[1759769308724,0.74349405,4680.1,4680.0,0.3384]
[1759769308936,0.74349405,4680.1,4680.0,0.6531]
[1759769309134,0.74349405,4680.1,4680.0,0.8541]
[1759769309929,0.62599405,4680.1,4680.0,0.8541]
[1759769310228,0.50849405,4680.1,4680.0,0.8541]
[1759769310435,0.50849405,4680.1,4680.0,0.5394]
[1759769310627,0.62599405,4680.1,4680.0,0.8541]
[1759769312337,0.50849405,4680.1,4680.0,0.86543719]
[1759769312540,0.50849405,4680.1,4680.0,0.93515719]
[1759769312735,0.50987749,4680.3,4680.2,0.7262]
[1759769312935,0.50987749,4680.3,4680.2,1.1106]
[1759769313437,0.50987749,4680.3,4680.2,1.13040742]
[1759769315738,0.62737749,4680.3,4680.2,0.54500742]
[1759769315943,0.74457749,4680.3,4680.2,0.74600742]
[1759769316836,0.81787749,4680.3,4680.2,0.33450742]
[1759769317539,0.74457749,4680.3,4680.2,0.33450742]
[1759769317940,0.74457749,4680.3,4680.2,0.53660742]
[1759769319244,0.74457749,4680.3,4680.2,0.73760742]
[1759769319947,1.12896749,4680.3,4680.2,0.73760742]
[1759769320745,0.74457749,4680.3,4680.2,1.12200742]
[1759769321935,0.50987749,4680.3,4680.2,1.12200742]
[1759769322341,0.50987749,4680.3,4680.2,0.73760742]
[1759769322542,0.74427749,4680.3,4680.2,0.73760742]
[1759769322747,1.12866749,4680.3,4680.2,0.73760742]
[1759769323344,1.12866749,4680.3,4680.2,1.12200742]
[1759769324852,1.12866749,4680.3,4680.2,0.73760742]
[1759769325354,1.12866749,4680.3,4680.2,1.12200742]
[1759769328158,0.50987749,4680.3,4680.2,1.12200742]
[1759769328856,0.89426749,4680.3,4680.2,1.12200742]
[1759769329151,1.01216749,4680.3,4680.2,1.12200742]
[1759769329553,0.62777749,4680.3,4680.2,1.12200742]
[1759769332653,1.01216749,4680.3,4680.2,1.12200742]
[1759769332857,0.50987749,4680.3,4680.2,1.12200742]
[1759769333554,0.81837749,4680.3,4680.2,0.33450742]
[1759769333755,0.96107,4680.0,4679.6,0.307]
[1759769333953,0.61964,4679.7,4679.6,0.307]
[1759769334255,1.12951749,4679.7,4679.6,0.52]
[1759769335447,0.74507749,4679.7,4679.6,0.52]
[1759769335959,0.62777749,4679.7,4679.6,0.7254]
[1759769338954,0.74507749,4679.7,4679.6,0.7254]
[1759769342061,0.81837749,4679.7,4679.6,0.307]
[1759769343074,0.81837749,4679.7,4679.6,0.52]
[1759769343860,0.74507749,4679.7,4679.6,0.52]
[1759769344164,0.74507749,4679.7,4679.6,0.307]
[1759769344360,0.95907749,4679.7,4679.6,0.7254]
[1759769344957,0.50987749,4679.7,4679.6,0.7254]
[1759769345565,0.50987749,4679.7,4679.6,5.7254]
[1759769347364,1.52820477,4680.8,4679.6,5.7254]
[1759769347365,0.38437,4680.6,4680.5,0.55]
[1759769347571,0.92737,4680.6,4680.5,0.857]
[1759769348368,0.209,4680.6,4680.5,0.857]
[1759769348670,0.38434,4681.0,4680.5,0.55]
[1759769348871,0.59334,4681.0,4680.9,0.7254]
[1759769349473,0.92734,4681.0,4680.9,0.7254]
[1759769349665,1.27754,4681.0,4680.9,0.213]
[1759769349970,0.7652,4680.3,4680.2,0.7254]
[1759769350362,0.209,4680.3,4680.2,0.7254]
[1759769352070,0.543,4680.6,4680.5,0.213]
[1759769352367,0.128,4681.0,4680.9,0.4184]
[1759769352368,1.14134,4681.0,4680.9,0.4184]
[1759769352677,1.36354,4681.0,4680.9,0.7254]
[1759769353272,1.14954,4681.0,4680.9,0.7254]
[1759769354371,0.59331,4681.4,4681.3,0.7254]
[1759769354976,1.14951,4681.4,4681.3,0.7254]
[1759769356873,1.14951,4681.4,4681.3,0.52]
[1759769357078,0.94053,4681.1,4681.0,0.52]
[1759769357375,1.14953,4681.1,4681.0,0.52]
[1759769357876,1.14953,4681.1,4680.5,0.1316]
[1759769357877,0.70795,4680.9,4680.8,0.52]
[1759769358082,0.7668,4680.9,4680.8,0.52]
[1759769358280,0.7668,4680.9,4680.8,0.7238]
[1759769358682,0.7668,4680.4,4680.3,0.2214]
[1759769358980,0.7668,4680.2,4680.1,0.5355]
[1759769359480,1.27509853,4680.2,4680.1,0.7393]
[1759769361673,0.92935,4679.7,4679.6,0.2214]
[1759769361980,0.7668,4679.2,4679.1,0.5355]
[1759769362178,1.65958853,4679.2,4679.1,0.5355]
[1759769362682,1.65958853,4679.2,4679.0,0.00221058]
[1759769362882,1.48909853,4679.1,4679.0,0.00221058]
[1759769363083,0.7668,4678.0,4677.9,0.76067734]
[1759769363382,0.7668,4678.0,4677.9,0.55687734]
[1759769363383,0.8874,4678.0,4677.9,0.55687734]
[1759769363579,1.3953273,4678.0,4677.9,0.02137734]
[1759769364176,0.7668,4677.3,4677.2,0.4252]
[1759769364377,0.2219,4677.3,4677.2,0.7393]
[1759769364880,0.3236,4677.7,4677.2,0.7393]
[1759769365177,0.72933299,4677.6,4677.5,0.8623]
[1759769365879,0.95063299,4677.6,4677.5,0.8623]
[1759769366085,0.2219,4677.6,4677.5,0.8623]
[1759769366879,0.7668,4677.6,4677.5,0.8623]
[1759769367083,0.7668,4677.6,4677.5,0.7393]
[1759769368474,0.7668,4677.6,4677.5,0.5355]
[1759769368682,0.7668,4677.6,4677.5,0.7393]
[1759769368888,0.7668,4677.6,4677.5,0.8623]
[1759769369089,0.4432,4677.6,4677.5,0.8623]
[1759769369284,0.7668,4677.6,4677.5,0.8623]
[1759769369683,0.7668,4677.6,4677.5,0.7393]
[1759769369883,0.7668,4677.6,4677.2,0.00222873]
[1759769369884,0.7668,4677.3,4677.2,0.00222873]
[1759769370486,0.7668,4677.3,4677.2,0.22362873]
[1759769371183,0.7668,4677.3,4677.2,0.53772873]
[1759769371690,0.00154008,4678.0,4677.9,0.3141]
[1759769371881,0.00154008,4678.0,4677.9,0.7393]
[1759769372189,0.00154008,4678.0,4677.9,5.7393]
[1759769373193,1.15127,4679.4,4679.3,0.7393]
[1759769373388,1.15127,4679.4,4678.6,0.38453]
[1759769373389,0.38448,4679.3,4678.6,0.38453]
[1759769373590,0.4432,4678.8,4678.3,0.38455]
[1759769373890,0.4432,4678.7,4678.6,0.7393]
[1759769374091,0.2219,4679.0,4678.9,0.4252]
[1759769374292,0.2219,4679.0,4678.9,0.7393]
[1759769374493,0.22456081,4679.0,4678.9,0.7393]
[1759769374792,0.54816081,4679.0,4678.9,0.7393]
[1759769375294,1.27457081,4679.0,4678.2,0.3141]
[1759769375489,0.3236,4678.9,4678.7,0.38452]
[1759769375690,0.20916081,4679.0,4678.9,1.10221]
[1759769376095,0.00266081,4679.0,4678.9,1.10221]
[1759769376295,0.72736081,4679.0,4678.9,0.7177]
[1759769379297,0.00266081,4679.0,4678.9,0.7177]
[1759769382496,0.20916081,4679.0,4678.9,0.7177]
[1759769382696,0.72736081,4679.0,4678.9,0.7177]
[1759769383492,0.7247,4678.6,4678.5,0.5133]
[1759769383794,0.7247,4678.6,4678.5,0.7177]
[1759769384195,0.7247,4678.6,4678.5,0.8503]
[1759769384196,0.4089,4678.6,4678.5,0.8503]
[1759769384900,0.7247,4678.6,4678.5,0.8503]
[1759769385192,1.23075833,4678.6,4678.5,0.8503]
[1759769385794,0.50605833,4678.6,4678.5,0.8503]
[1759769386298,0.71255833,4678.6,4678.5,0.8503]
[1759769387102,1.61528833,4678.6,4678.5,0.5133]
[1759769387304,1.61528833,4678.6,4678.4,0.38455]
[1759769387503,0.7247,4678.3,4678.2,1.10226]
[1759769387701,1.23075833,4678.3,4678.2,1.10226]
[1759769387997,0.71255833,4678.3,4678.2,1.10226]
[1759769388197,0.50605833,4678.3,4678.2,1.10226]
[1759769388398,0.3245,4678.9,4678.0,0.123]
[1759769388399,0.2132,4678.5,4678.4,1.12585]
[1759769388696,0.72025749,4678.5,4678.4,1.12585]
[1759769389102,1.25495749,4678.5,4678.4,0.7413]
[1759769390203,1.25495749,4678.5,4678.4,1.12585]
[1759769390504,0.72025749,4678.5,4678.4,1.12585]
[1759769391101,0.72025749,4678.5,4678.4,0.7413]
[1759769391309,1.63949749,4678.5,4678.4,0.7413]
[1759769391697,1.63949749,4678.5,4678.2,0.38457]
[1759769391698,0.4234,4677.7,4677.6,1.12592]
[1759769391901,0.2132,4677.7,4677.6,1.12592]
[1759769392607,0.72107213,4677.7,4677.6,1.12592]
[1759769393308,0.50787213,4677.7,4677.6,1.12592]
[1759769393507,0.2132,4677.9,4677.8,0.81449]
[1759769393708,0.2132,4677.9,4677.8,1.12589]
[1759769393909,0.72118052,4677.9,4677.8,1.12589]
[1759769394808,1.25588052,4677.9,4677.8,1.12589]
[1759769395309,0.93138052,4677.9,4677.8,1.12589]
[1759769396706,1.25588052,4677.9,4677.8,1.12589]
[1759769396907,1.25588052,4677.9,4677.8,0.7413]
[1759769397609,1.64047052,4677.9,4677.8,0.7413]
[1759769398206,1.25588052,4677.9,4677.8,1.1259]
[1759769398509,0.93138052,4677.9,4677.8,1.1259]
[1759769398709,1.25588052,4677.9,4677.8,0.7413]
[1759769399102,1.25588052,4677.9,4677.8,1.1259]
[1759769400508,1.25617879,4677.9,4677.8,1.1259]
[1759769402105,1.25617879,4677.9,4677.8,0.7413]
[1759769402413,0.3846,4677.8,4677.4,0.69603]
[1759769402607,0.7479,4677.5,4677.4,0.91833]
[1759769402911,1.64079879,4677.5,4677.4,0.5337]
[1759769403214,1.25617879,4677.5,4677.4,1.12593]
[1759769403513,0.72147879,4677.5,4677.4,1.12593]
[1759769404707,0.50827879,4677.5,4677.4,1.12593]
[1759769404907,0.5377,4677.9,4677.8,0.7413]
[1759769405102,1.04490175,4677.9,4677.8,0.7413]
[1759769405306,1.04490175,4677.9,4677.8,1.1259]
[1759769405307,0.50720175,4677.9,4677.8,1.1259]
[1759769405903,0.72040175,4677.9,4677.8,1.1259]
[1759769406710,1.25510175,4677.9,4677.8,0.2223]
[1759769407212,0.50720175,4677.9,4677.8,1.1259]
[1759769409415,0.50720175,4677.9,4677.8,6.1259]
[1759769409613,0.00266081,4679.0,4678.9,0.4299]
[1759769409809,0.72338526,4679.0,4678.9,0.7413]
[1759769410516,1.25808526,4679.0,4678.9,0.7413]
[1759769410716,1.38678526,4679.0,4678.9,0.5337]
[1759769411010,0.5347,4678.7,4678.6,0.5337]
[1759769411204,1.25542445,4678.7,4678.6,0.5337]
[1759769411412,1.25542445,4678.7,4678.6,0.7413]
[1759769411616,0.72072445,4678.7,4678.6,0.7413]
[1759769412016,0.50752445,4678.7,4678.6,0.7413]
[1759769412212,0.2132,4678.9,4678.8,0.7413]
[1759769412412,0.2132,4678.9,4678.8,1.12582]
[1759769412609,0.72087833,4678.9,4678.8,1.12582]
[1759769412809,0.50767833,4678.9,4678.8,1.12582]
[1759769414613,0.00266081,4679.0,4678.9,0.7413]
[1759769414818,0.21586081,4679.0,4678.9,0.7413]
[1759769415013,0.72338048,4679.0,4678.9,0.7413]
[1759769415521,0.51018048,4679.0,4678.9,0.7413]
[1759769416314,0.00266081,4679.0,4678.9,0.7413]
[1759769417117,0.00266081,4679.0,4678.9,2.44546434]
[1759769418531,0.21586081,4679.0,4678.9,2.44546434]
[1759769419424,0.00266081,4679.0,4678.9,2.44546434]
[1759769419925,0.00266081,4679.0,4678.9,2.82997434]
[1759769420124,0.73706081,4679.0,4678.9,2.44546434]
[1759769420327,0.4306,4678.7,4678.6,0.90543]
[1759769420522,0.7344,4678.7,4678.6,1.12463]
[1759769421326,0.4306,4678.7,4678.6,1.12463]
[1759769421529,0.2151,4678.7,4678.6,1.12463]
[1759769421832,0.00266081,4679.0,4678.9,1.12461]
[1759769423234,0.50933346,4679.0,4678.9,1.12461]
[1759769423627,1.24373346,4679.0,4678.9,0.90541]
[1759769424327,1.24367411,4679.0,4678.9,0.90541]
[1759769424529,1.24367411,4679.0,4678.9,1.12461]
[1759769424926,1.36757411,4679.0,4678.9,0.58791]
[1759769425123,1.24367411,4679.0,4678.9,1.12461]
[1759769425733,1.24367411,4679.0,4678.5,1.82339439]
[1759769425734,1.36757411,4679.0,4678.5,1.82339439]
[1759769425931,0.7344,4678.6,4678.5,2.94803439]
[1759769427840,0.5189,4678.9,4678.8,0.80712]
[1759769428137,1.0255664,4678.9,4678.8,1.12462]
[1759769428336,1.2410664,4678.9,4678.8,1.12462]
[1759769428536,1.2410664,4678.9,4678.8,0.7401]
[1759769428739,0.7344,4678.8,4678.7,0.90542]
[1759769428940,1.2410664,4678.8,4678.7,0.90542]
[1759769429341,1.2410664,4678.8,4678.7,1.12462]
[1759769432445,0.7217664,4678.8,4678.7,1.12462]
[1759769432743,0.5066664,4678.8,4678.7,1.33862]
[1759769432931,0.00266081,4679.0,4678.9,0.3175]
[1759769433136,0.00266081,4679.0,4678.9,0.7401]
[1759769433343,0.50956096,4679.0,4678.9,0.7401]
[1759769433637,0.50956096,4679.0,4678.9,1.12461]
[1759769433842,0.00266081,4679.0,4678.9,1.12461]
[1759769435342,0.031,4680.4,4678.9,1.12461]
[1759769435343,0.7344,4680.4,4680.3,0.7401]
[1759769435642,1.24061902,4680.4,4680.3,0.7401]
[1759769436337,1.24251497,4680.4,4680.3,0.7401]
[1759769439240,1.24251497,4680.4,4680.0,0.38442]
[1759769439440,0.71981902,4680.3,4680.1,0.38441]
[1759769439641,0.70971902,4680.2,4679.7,0.214]
[1759769439947,0.7228,4679.7,4679.6,0.2029]
[1759769440138,1.22901902,4679.7,4679.6,0.5251]
[1759769440338,1.22901902,4679.7,4679.3,0.3222]
[1759769440642,0.7228,4679.4,4679.3,0.90957]
[1759769440843,1.22901902,4679.4,4679.3,0.2029]
[1759769441034,0.3057,4679.3,4679.1,0.70669]
[1759769441237,1.22901902,4679.2,4679.1,0.2029]
[1759769441437,0.7228,4678.7,4678.6,0.90963]
[1759769441645,0.7228,4678.7,4678.6,1.11223]
[1759769442447,0.4171,4678.7,4678.6,1.11223]
[1759769442644,0.5092,4679.1,4679.0,1.2345]
[1759769442843,0.2035,4679.3,4679.2,0.78998]
[1759769443147,0.70972088,4679.3,4679.2,0.78998]
[1759769443348,1.22902088,4679.3,4679.2,1.11218]
[1759769443641,1.22902088,4679.3,4679.2,0.5251]
[1759769443846,1.22902088,4679.3,4679.0,0.3845]
[1759769444145,0.7228,4679.1,4679.0,0.9096]
[1759769444441,0.92332088,4679.1,4679.0,1.2345]
[1759769444941,0.50622088,4679.1,4679.0,1.2345]
[1759769445143,0.7228,4679.8,4679.7,0.7277]
[1759769445349,1.22905944,4679.8,4679.7,0.7277]
[1759769446246,1.22905944,4679.8,4679.0,0.1223]
[1759769446247,0.7228,4679.3,4679.2,0.90958]
[1759769446436,1.22905944,4679.3,4679.2,0.90958]
[1759769446641,1.22905944,4679.3,4679.2,1.11218]
[1759769447750,0.92335944,4679.3,4679.2,1.11218]
[1759769448549,1.24485944,4679.3,4679.2,1.11218]
[1759769448745,0.92335944,4679.3,4679.2,1.11218]
[1759769449548,1.24485944,4679.3,4679.2,1.11218]
[1759769450849,0.92335944,4679.3,4679.2,1.11218]
[1759769453052,0.70975944,4679.3,4679.2,1.11218]
[1759769453247,0.50625944,4679.3,4679.2,1.11218]
[1759769453447,0.50625944,4679.3,4679.2,1.32618]
[1759769453642,0.5984,4680.3,4679.9,0.59102]
[1759769453643,0.2071,4680.0,4679.9,0.59102]
[1759769453849,0.71334718,4680.0,4679.9,0.79192]
[1759769454353,0.71334718,4680.0,4679.9,1.11083]
[1759769456148,1.03484718,4680.0,4679.9,1.11083]
[1759769456355,1.25554718,4680.0,4679.9,1.11083]
[1759769456655,0.93404718,4680.0,4679.9,1.11083]
[1759769457250,0.50624718,4680.0,4679.9,1.11083]
[1759769458351,0.32339595,4680.4,4680.3,0.38439]
[1759769458554,1.03660235,4680.4,4680.3,1.11079]
[1759769459059,1.25730235,4680.4,4680.3,0.7264]
[1759769461146,1.25730235,4680.4,4680.3,0.2066]
[1759769461656,1.25730235,4680.4,4680.3,0.59099]
[1759769461860,1.25730235,4680.4,4680.3,0.90989]
[1759769462352,1.25730235,4680.4,4680.3,1.11079]
[1759769464447,0.71510235,4680.4,4680.3,1.11079]
[1759769464653,0.50800235,4680.4,4680.3,1.11079]
[1759769464854,1.25730235,4680.4,4680.3,1.11079]
[1759769466560,0.50800235,4680.4,4680.3,1.11079]
[1759769467053,0.3215,4681.3,4680.8,0.59095]
[1759769467054,0.2071,4680.9,4680.8,0.59095]
[1759769467261,0.2071,4680.9,4680.8,0.7264]
[1759769467262,0.7493,4680.9,4680.8,0.7264]
[1759769467960,0.75130988,4680.9,4680.8,0.72795526]
[1759769468951,0.38439,4680.4,4679.7,40.8]
[1759769469157,6.71218988,4680.9,4679.7,0.5255]
[1759769469158,0.4278,4679.8,4679.7,0.5255]
[1759769469759,0.7493,4679.8,4679.7,0.5255]
[1759769470157,0.7493,4679.8,4679.7,0.52709246]
[1759769470858,0.7493,4679.8,4679.7,0.20819246]
[1759769471163,0.7493,4679.8,4679.7,0.00159246]
[1759769472053,0.7493,4679.8,4679.7,0.52709246]
[1759769472253,0.7493,4679.8,4679.7,0.72799246]
[1759769472458,0.7493,4679.8,4679.7,0.52709246]
[1759769472665,0.7493,4679.8,4679.7,0.00159246]
[1759769473166,0.5286,4679.8,4679.7,0.72799246]
[1759769473463,0.7493,4679.8,4679.7,0.52709246]
[1759769473663,0.7493,4679.8,4679.7,0.00159246]
[1759769476660,5.7493,4679.8,4679.7,0.00159246]
[1759769479169,6.25299226,4679.8,4679.7,0.00159246]
[1759769480468,9.79518478,4679.8,4678.6,0.71313]
[1759769480667,0.7432,4678.7,4678.6,1.13423]
[1759769480868,1.24689226,4678.7,4678.6,0.7497]
[1759769481466,1.24689226,4678.7,4678.1,41.1286]
[1759769481670,0.7432,4678.4,4678.3,0.00210766]
[1759769481859,1.46089226,4678.4,4678.3,0.00210766]
[1759769482064,4.29279028,4678.4,4678.3,0.00210766]
[1759769482264,0.7432,4677.2,4677.1,0.7497]
[1759769482568,1.24689226,4677.2,4677.1,0.2175]
[1759769482770,1.24689226,4677.2,4677.1,0.5461]
[1759769483269,1.13012617,4677.2,4677.1,0.00166241]
[1759769483469,1.13012617,4677.2,4676.2,0.3286]
[1759769483470,0.7432,4676.3,4676.2,0.3286]
[1759769483669,0.7432,4676.3,4676.2,0.5461]
[1759769483865,0.3173,4676.2,4675.8,40.8]
[1759769484072,0.2217,4675.9,4675.8,41.1286]
[1759769484466,0.2217,4675.9,4675.8,41.13045533]
[1759769484666,0.2217,4675.9,4675.8,0.75155533]
[1759769485864,0.539,4676.2,4676.1,0.7497]
[1759769486066,0.2217,4676.2,4676.1,0.7497]
[1759769486778,0.7432,4676.2,4676.1,0.7497]
[1759769487774,0.7432,4676.2,4676.1,0.5461]
[1759769487973,0.7432,4676.2,4676.1,0.2175]
[1759769488371,0.7432,4676.2,4676.1,0.7497]
[1759769489776,0.4259,4676.2,4676.1,0.7497]
[1759769490162,0.3173,4676.5,4676.1,0.7497]
[1759769490369,0.38468,4676.9,4676.1,0.7497]
[1759769490370,0.2217,4676.2,4676.1,0.4211]
[1759769490675,0.2217,4676.2,4676.1,0.7497]
[1759769491072,0.7432,4676.2,4676.1,0.7497]
[1759769491767,0.7432,4676.2,4676.1,0.2175]
[1759769491967,0.7432,4676.2,4676.1,0.7497]
[1759769492775,0.7432,4676.2,4676.1,0.5461]
[1759769493073,0.7432,4676.2,4676.1,0.2175]
[1759769493671,0.4259,4675.9,4675.8,0.33045533]
[1759769493864,0.7432,4675.9,4675.8,0.00185533]
[1759769494771,0.7432,4674.7,4674.6,0.7497]
[1759769495369,0.3173,4674.6,4674.5,0.3286]
[1759769495574,0.3173,4674.6,4674.5,0.5461]
[1759769495575,0.7432,4674.6,4674.5,0.5461]
[1759769495774,0.7432,4674.6,4674.5,0.54883002]
[1759769495973,0.7432,4674.6,4674.5,0.76983002]
[1759769496176,0.2217,4674.6,4674.5,0.89193002]
[1759769496373,0.3342,4675.8,4675.7,0.2215]
[1759769496575,0.7781,4675.8,4675.7,0.7591]
[1759769497571,0.7781,4675.8,4675.7,0.5381]
[1759769498172,0.7781,4675.8,4675.7,0.7591]
[1759769499075,1.16286,4675.8,4675.7,0.5381]
[1759769499375,1.16286,4675.8,4675.1,0.38482]
[1759769499570,1.16286,4675.8,4675.2,0.3166]
[1759769499777,1.16286,4675.8,4675.2,0.70141]
[1759769500079,0.7781,4675.7,4675.6,0.7591]
[1759769503474,0.7781,4675.7,4675.6,0.2215]
[1759769504175,0.7781,4675.7,4675.3,0.3848]
[1759769504384,0.7781,4675.7,4675.4,0.3166]
[1759769504385,1.16288,4675.7,4675.4,0.3166]
[1759769504575,0.82871,4675.2,4675.1,0.5381]
[1759769504772,0.4439,4674.7,4674.6,0.5381]
[1759769504973,0.7781,4674.7,4674.6,0.7591]
[1759769505168,0.65782,4675.1,4675.0,0.3436]
[1759769505375,0.65782,4675.1,4675.0,0.6602]
[1759769505981,0.273,4675.1,4675.0,0.6602]
[1759769506574,0.273,4675.1,4675.0,0.8812]
[1759769508378,0.77368096,4675.1,4675.0,0.8812]
[1759769508968,0.63718096,4675.1,4675.0,0.8812]
[1759769511585,0.50068096,4675.1,4675.0,1.26603]
[1759769511883,1.52820477,4676.1,4675.8,0.7319]
[1759769511884,0.52116,4675.9,4675.8,0.7319]
[1759769512082,1.02360059,4675.9,4675.8,0.7319]
[1759769512280,3.86566367,4675.9,4675.8,0.7319]
[1759769513178,4.00206367,4675.9,4675.8,0.7319]
[1759769513577,4.00206367,4675.9,4675.8,0.5239]
[1759769513885,0.74278,4675.6,4675.5,0.4524]
[1759769514080,1.24522059,4675.6,4675.5,0.4524]
[1759769514279,1.24522059,4675.6,4675.5,0.3202]
[1759769514775,1.24522059,4675.6,4675.5,0.4524]
[1759769515284,1.16002059,4675.6,4675.5,0.6561]
[1759769516788,1.24522059,4675.6,4675.5,0.3202]
[1759769516981,0.2728,4675.3,4675.2,0.38481]
[1759769517181,0.2728,4675.3,4675.2,0.70501]
[1759769517483,0.2728,4675.3,4675.2,0.90871]
[1759769517683,1.24524059,4675.3,4675.2,0.3202]
[1759769518282,1.16004059,4675.3,4675.2,0.5239]
[1759769518688,1.24524059,4675.3,4675.2,0.5239]
[1759769519682,0.38485,4674.7,4674.6,0.3202]
[1759769519888,0.74285,4674.7,4674.6,0.3202]
[1759769520089,1.24529059,4674.7,4674.6,0.3202]
[1759769520288,1.16009059,4674.7,4674.6,0.5239]